bitfinex-derivatives/quotes_ETHF0:USTF0_20250804
["timestamp","ask_amount","ask_price","bid_price","bid_amount"]
[1754275244058,0.56361,3548.2,3547.9,1.5128]
[1754275244363,3.59261,3548.2,3548.1,3.7725]
[1754275244566,1.4849,3547.7,3547.6,0.9543]
[1754275244756,3.6479,3547.7,3547.6,2.3818]
[1754275244955,3.6479,3547.7,3547.6,1.5349]
[1754275245454,3.6479,3547.5,3547.4,2.3818]
[1754275247551,3.6479,3547.5,3547.4,3.7725]
[1754275250966,3.6479,3547.5,3547.4,0.9543]
[1754275251466,3.6479,3547.5,3547.4,1.5349]
[1754275252865,3.6479,3547.5,3547.4,2.3818]
[1754275253368,3.6479,3547.5,3547.4,0.9543]
[1754275253969,3.6479,3547.5,3547.4,1.5349]
[1754275254468,3.6479,3547.5,3547.4,3.7725]
[1754275257972,1.4849,3547.3,3547.2,3.2078]
[1754275258270,3.6479,3547.3,3547.2,4.7427]
[1754275258465,3.6479,3547.3,3547.2,6.9803]
[1754275258858,3.6479,3547.3,3547.2,5.5896]
[1754275259268,2.6299,3547.3,3547.2,6.9803]
[1754275260667,1.0858,3547.3,3547.2,6.9803]
[1754275260870,3.2488,3547.5,3547.4,3.7725]
[1754275261667,3.6479,3547.5,3547.4,3.7725]
[1754275263571,2.6299,3547.5,3547.4,3.7725]
[1754275263777,1.1826,3547.7,3547.6,3.7725]
[1754275263778,4.2116,3547.7,3547.6,3.7725]
[1754275264361,0.56368,3547.8,3547.6,2.0934]
[1754275264566,1.0858,3547.7,3547.6,1.5128]
[1754275264767,3.6479,3547.7,3547.6,1.5128]
[1754275264972,3.6479,3547.7,3547.6,3.1919]
[1754275265172,3.6479,3547.7,3547.6,3.7725]
[1754275271683,2.66754,3547.4,3547.3,3.7725]
[1754275272073,2.66754,3547.4,3547.3,2.0934]
[1754275272273,4.21164,3547.4,3547.3,2.0934]
[1754275272771,4.21164,3547.4,3547.3,2.9403]
[1754275273366,4.21164,3547.4,3547.3,0.4214]
[1754275273678,4.21168,3547.1,3547.0,3.7725]
[1754275275272,0.56381,3547.0,3546.6,3.8086]
[1754275275577,2.5624,3546.7,3546.6,5.86226]
[1754275275875,3.1662,3546.7,3546.6,7.44196]
[1754275276273,2.5624,3546.7,3546.6,7.44196]
[1754275277180,1.794,3546.7,3546.6,7.44196]
[1754275277580,2.5624,3546.9,3546.8,4.23413]
[1754275278575,0.56378,3547.2,3546.8,2.65443]
[1754275278776,3.5625,3547.3,3547.2,3.6703]
[1754275279276,0.56372,3547.5,3547.3,0.56375]
[1754275279482,3.12612,3547.5,3547.4,1.4898]
[1754275279678,3.12612,3547.5,3547.4,3.6703]
[1754275279879,4.12622,3547.5,3547.4,0.933]
[1754275280073,3.5625,3547.2,3547.1,0.6008]
[1754275280280,3.5625,3547.2,3547.1,1.5338]
[1754275280480,3.5625,3547.2,3547.1,2.3521]
[1754275280680,1.60384,3547.4,3547.3,3.6703]
[1754275280875,3.72994,3547.4,3547.3,3.6703]
[1754275281081,4.12624,3547.4,3547.3,3.6703]
[1754275282086,3.5625,3547.4,3547.3,3.6703]
[1754275282386,1.83171,3547.6,3547.5,3.6703]
[1754275282885,3.12611,3547.6,3547.5,3.6703]
[1754275283483,2.5624,3547.6,3547.5,3.6703]
[1754275284081,3.1662,3547.6,3547.5,3.6703]
[1754275284283,3.5625,3547.6,3547.5,3.6703]
[1754275286683,3.5625,3547.6,3547.5,2.9089]
[1754275287380,3.5625,3547.6,3547.2,0.56375]
[1754275287585,3.5625,3547.3,3547.2,4.23405]
[1754275288485,1.2799,3547.3,3547.2,4.23405]
[1754275288683,1.0401,3547.5,3547.4,2.05353]
[1754275288884,0.7539,3547.6,3547.5,1.5797]
[1754275289184,0.7539,3547.6,3547.5,3.6703]
[1754275289383,3.5625,3547.6,3547.5,3.6703]
[1754275289888,4.12625,3547.4,3547.3,3.6703]
[1754275291093,3.5625,3547.4,3547.3,3.6703]
[1754275291891,2.9587,3547.4,3547.3,3.6703]
[1754275292091,1.69351,3547.6,3547.5,0.5568]
[1754275292388,4.12621,3547.6,3547.5,3.6703]
[1754275293290,3.5625,3547.6,3547.5,3.6703]
[1754275293486,2.20758,3547.8,3547.7,3.0695]
[1754275293683,2.60388,3547.8,3547.7,3.6703]
[1754275294184,4.12618,3547.8,3547.7,3.6703]
[1754275294581,1.5223,3548.5,3548.3,0.56358]
[1754275294779,1.0401,3548.7,3548.6,1.66134]
[1754275295087,0.68695051,3548.7,3548.6,7.85530381]
[1754275295286,0.5141,3548.7,3548.6,7.85530381]
[1754275295485,3.2078,3548.8,3548.6,5.67480381]
[1754275295684,3.2078,3548.8,3548.7,3.6703]
[1754275299490,3.2078,3548.8,3548.6,4.18500381]
[1754275299491,1.794,3549.0,3548.9,1.4898]
[1754275299691,3.1662,3549.0,3548.9,3.6703]
[1754275301688,6.0164,3549.3,3549.2,1.4898]
[1754275301888,3.2078,3549.3,3549.2,7.85521381]
[1754275302488,3.2078,3549.7,3549.6,1.0978]
[1754275302785,1.0,3549.8,3549.7,3.6703]
[1754275304989,3.9245,3549.8,3549.7,2.0906]
[1754275305296,4.5297,3549.8,3549.7,3.6272]
[1754275306695,3.1758,3549.8,3549.7,2.8715]
[1754275306887,4.5297,3549.8,3549.7,3.6272]
[1754275307088,3.5297,3549.7,3549.6,4.6731]
[1754275307296,3.5297,3549.7,3549.6,5.454]
[1754275307703,3.5297,3549.7,3549.6,5.99]
[1754275308092,3.5297,3549.7,3549.6,6.7457]
[1754275308704,4.09307,3549.7,3549.6,1.4653]
[1754275309890,4.09307,3549.7,3549.6,0.8983]
[1754275310097,1.9827,3549.5,3549.4,0.8983]
[1754275310300,1.9827,3549.5,3549.2,3.2078]
[1754275310301,1.98273,3549.3,3549.2,3.2078]
[1754275310698,4.09313,3549.3,3549.2,3.2078]
[1754275311295,4.09313,3549.3,3549.0,1.34437]
[1754275311498,3.59486,3549.2,3549.1,1.4653]
[1754275311698,4.09316,3549.2,3549.1,1.4653]
[1754275312194,4.09316,3549.2,3549.1,0.4049]
[1754275312403,1.98278,3549.0,3548.9,1.4653]
[1754275312700,1.98278,3549.0,3548.9,0.4049]
[1754275313000,4.09318,3549.0,3548.9,1.4653]
[1754275317103,3.5297,3549.0,3548.9,2.80969]
[1754275317307,3.5297,3549.0,3548.9,2.2462]
[1754275317699,3.5297,3549.0,3548.9,1.4653]
[1754275318301,3.5297,3549.0,3548.8,3.2078]
[1754275318302,3.48799,3548.9,3548.8,3.2078]
[1754275318503,3.5297,3548.5,3548.4,4.6731]
[1754275319008,3.5297,3548.3,3548.2,0.4934]
[1754275319607,3.5297,3548.3,3548.2,1.4653]
[1754275320007,3.5297,3548.3,3548.2,0.4049]
[1754275320203,1.4193,3548.1,3548.0,5.45063]
[1754275320402,3.5297,3548.1,3548.0,3.2078]
[1754275320603,4.09337,3547.8,3547.7,1.4653]
[1754275320803,3.5297,3547.8,3547.7,0.8983]
[1754275321708,3.5297,3547.6,3547.5,4.6731]
[1754275321904,3.5297,3547.6,3547.5,3.2078]
[1754275322305,0.56369,3547.7,3547.1,0.7557]
[1754275322306,3.5297,3547.2,3547.1,1.4653]
[1754275322512,3.5297,3547.2,3547.1,2.2462]
[1754275322914,3.5297,3547.2,3546.9,4.6731]
[1754275322915,1.4193,3547.0,3546.9,4.6731]
[1754275323210,3.5297,3547.0,3546.9,3.2078]
[1754275323915,4.09356,3546.6,3546.5,3.2078]
[1754275324112,2.9245,3546.5,3546.4,0.5]
[1754275324412,3.5297,3546.5,3546.4,0.5]
[1754275327203,1.1857,3545.8,3545.7,1.4653]
[1754275327409,6.41886381,3545.8,3545.7,1.4653]
[1754275329415,2.7974,3545.8,3545.7,2.2462]
[1754275329915,2.7974,3545.8,3545.7,2.0013]
[1754275330912,2.7974,3545.8,3545.7,1.4653]
[1754275331412,2.7974,3545.8,3545.3,1.4653]
[1754275331413,1.2561,3545.4,3545.3,1.4653]
[1754275331715,2.7613,3545.4,3545.3,1.4653]
[1754275332415,2.7613,3545.4,3545.3,0.8983]
[1754275333010,2.7613,3545.4,3545.1,1.3479]
[1754275333011,2.7613,3545.4,3545.1,0.56408]
[1754275333215,2.7613,3545.1,3545.0,3.6127]
[1754275333417,2.7613,3545.1,3545.0,4.1797]
[1754275333618,2.7613,3545.1,3545.0,0.9719]
[1754275334411,2.7613,3545.1,3545.0,2.7689]
[1754275334611,2.7613,3545.1,3545.0,3.5249]
[1754275336415,2.7613,3545.1,3545.0,1.4653]
[1754275338220,2.7613,3545.1,3545.0,2.2611]
[1754275340920,0.56419,3544.6,3544.5,3.5144]
[1754275341126,6.99765381,3544.6,3544.5,3.5144]
[1754275341325,2.812,3544.6,3544.5,3.5144]
[1754275341620,2.5769,3544.6,3544.5,3.5144]
[1754275342216,1.05551,3544.5,3544.4,0.5223]
[1754275342420,3.23151,3544.5,3544.4,3.5144]
[1754275342924,2.6673,3544.5,3544.4,3.5144]
[1754275343122,1.7908,3545.0,3544.9,3.5144]
[1754275343328,2.35491,3545.0,3544.9,3.5144]
[1754275343527,3.37611,3545.0,3544.9,3.5144]
[1754275344027,3.37611,3545.0,3544.9,2.7584]
[1754275344226,3.37611,3545.0,3544.9,0.3801]
[1754275345930,1.71926,3544.7,3544.6,2.7584]
[1754275346126,3.37616,3544.7,3544.6,2.7584]
[1754275346427,3.37616,3544.7,3544.6,3.5144]
[1754275348725,3.14106,3544.7,3544.6,3.5144]
[1754275350025,3.37616,3544.7,3544.6,1.7283]
[1754275350331,3.37616,3544.7,3544.6,2.2506]
[1754275350631,3.37616,3544.7,3544.6,1.4548]
[1754275350835,3.37621,3544.4,3544.3,3.5144]
[1754275353840,2.35501,3544.4,3544.3,1.9626]
[1754275354043,3.37621,3544.4,3544.3,3.5144]
[1754275355336,1.57456,3544.7,3544.6,2.962]
[1754275355546,3.88979907,3544.7,3544.6,3.5144]
[1754275355939,3.98019907,3544.7,3544.6,3.5144]
[1754275356940,2.32329907,3544.7,3544.6,2.7584]
[1754275357241,3.98019907,3544.7,3544.6,3.5144]
[1754275357638,4.12489907,3544.7,3544.6,3.5144]
[1754275358842,4.12489907,3544.7,3544.6,2.7584]
[1754275359038,3.14113,3544.3,3544.2,6.7222]
[1754275359238,3.88986907,3544.3,3544.2,6.7222]
[1754275359438,3.88986907,3544.3,3544.2,2.7584]
[1754275359634,3.88986907,3544.3,3544.2,3.5144]
[1754275359944,0.74873907,3544.3,3544.2,3.5144]
[1754275361537,0.74873907,3544.3,3544.2,6.7222]
[1754275363938,1.51333907,3544.3,3544.2,6.7222]
[1754275368746,3.32833907,3544.3,3544.2,6.7222]
[1754275370651,1.00561322,3544.9,3544.7,1.391]
[1754275370840,0.17378126,3544.8,3544.7,1.95516]
[1754275371349,0.17378126,3544.8,3544.7,2.73206]
[1754275371544,0.7646,3544.9,3544.7,5.16296]
[1754275371746,0.7646,3544.9,3544.8,3.4665]
[1754275372450,0.56409,3545.2,3545.0,3.4665]
[1754275372747,4.53891322,3545.4,3545.3,3.4665]
[1754275372944,4.70080786,3545.4,3545.3,3.4665]
[1754275373250,0.65929464,3545.4,3545.3,3.4665]
[1754275373551,3.69519464,3545.4,3545.3,3.4665]
[1754275374550,0.16189464,3545.4,3545.3,3.4665]
[1754275374946,3.69519464,3545.4,3545.3,3.4665]
[1754275375445,0.16189464,3545.4,3545.3,6.6743]
[1754275376455,3.5333,3545.9,3545.8,4.03049]
[1754275376752,3.69410763,3545.9,3545.8,4.03049]
[1754275377054,3.69410762,3545.9,3545.8,3.4665]
[1754275377743,0.16080762,3545.9,3545.8,3.4665]
[1754275378049,3.149,3546.1,3546.0,1.391]
[1754275378242,3.149,3546.1,3546.0,3.4665]
[1754275378748,3.2078,3546.4,3546.3,1.391]
[1754275379048,3.2078,3546.4,3546.3,4.03041]
[1754275379049,3.86583527,3546.4,3546.3,4.03041]
[1754275379248,5.94803527,3546.4,3546.3,4.03041]
[1754275379453,6.51743527,3546.4,3546.3,4.03041]
[1754275379952,3.149,3546.4,3546.3,4.03041]
[1754275380146,1.7877,3546.4,3546.3,7.23821]
[1754275380353,0.7646,3546.6,3546.5,4.03038]
[1754275380554,3.149,3546.6,3546.5,4.03038]
[1754275380949,3.5333,3546.6,3546.5,3.4665]
[1754275382044,3.5333,3546.6,3546.5,1.4307]
[1754275382648,1.97127,3546.5,3546.3,0.7769]
[1754275382849,3.5333,3546.4,3546.3,2.2076]
[1754275383858,3.62146381,3546.6,3545.9,3.2078]
[1754275384049,3.5333,3546.0,3545.9,3.593]
[1754275384255,7.71871381,3546.0,3545.9,3.2078]
[1754275384456,7.15476381,3546.0,3545.9,3.2078]
[1754275384649,7.15476381,3546.0,3545.7,1.34089]
[1754275384650,1.4074,3546.0,3545.8,0.56397]
[1754275384852,3.5333,3545.9,3545.8,4.03047]
[1754275385658,3.5333,3545.9,3545.8,2.2076]
[1754275386059,3.5333,3545.9,3545.8,1.4307]
[1754275386959,3.5333,3545.6,3545.5,3.2078]
[1754275387659,3.5333,3545.6,3545.5,4.2533]
[1754275387961,3.5333,3545.6,3545.5,6.6743]
[1754275388662,2.1259,3546.1,3545.5,3.2078]
[1754275388960,3.5333,3546.1,3546.0,3.4665]
[1754275389362,3.5333,3546.1,3546.0,4.03045]
[1754275389561,3.5333,3546.1,3546.0,3.4665]
[1754275389762,3.5333,3546.1,3546.0,1.4307]
[1754275389962,3.5333,3545.9,3545.8,1.99468]
[1754275390759,3.5333,3545.9,3545.8,3.28508]
[1754275390960,3.5333,3545.9,3545.8,4.03048]
[1754275395471,4.2163,3546.4,3546.3,4.01871]
[1754275395665,1.0085,3546.4,3546.3,4.01871]
[1754275395864,3.4075,3546.4,3546.3,4.01871]
[1754275396259,3.4075,3546.4,3546.3,0.7669]
[1754275396467,3.4075,3546.2,3546.1,0.56394]
[1754275396668,3.4075,3546.2,3546.1,2.81824]
[1754275396869,3.4075,3546.2,3546.1,4.01874]
[1754275398762,3.4075,3546.2,3546.1,3.30784]
[1754275398960,3.4075,3546.2,3546.1,2.81824]
[1754275400064,3.4075,3546.2,3546.1,4.01874]
[1754275400271,1.3728,3546.5,3546.4,3.30778]
[1754275400473,3.4075,3546.5,3546.4,4.01868]
[1754275401072,6.43274,3546.8,3546.7,1.3853]
[1754275401273,5.8689,3546.8,3546.7,1.4874]
[1754275401776,6.6153,3546.8,3546.7,1.4874]
[1754275402271,3.4075,3546.8,3546.7,1.4874]
[1754275403768,3.4075,3546.8,3546.7,2.05124]
[1754275403973,3.4075,3546.8,3546.7,2.81814]
[1754275404369,3.4075,3546.8,3546.7,4.01864]
[1754275404575,2.8382,3546.8,3546.7,4.01864]
[1754275405071,2.4739,3546.8,3546.7,4.01864]
[1754275405980,3.4075,3546.8,3546.7,3.4548]
[1754275407169,0.7464,3547.0,3546.8,0.56383]
[1754275407472,2.6611,3547.0,3546.9,3.4548]
[1754275407876,3.4075,3547.0,3546.9,3.4548]
[1754275409674,3.2078,3547.2,3547.0,0.5638]
[1754275409977,3.2078,3547.2,3547.1,7.07626381]
[1754275410172,4.5806,3547.6,3547.5,1.55702]
[1754275410373,6.6153,3547.6,3547.5,4.01852]
[1754275415871,1.0085,3547.2,3547.1,2.32398]
[1754275416073,1.3728,3547.0,3546.8,3.77162]
[1754275416277,1.3728,3546.8,3546.7,1.0954]
[1754275416473,3.4075,3546.8,3546.7,2.7439]
[1754275416679,3.4075,3546.8,3546.7,3.4548]
[1754275417486,3.4075,3546.8,3546.7,2.7439]
[1754275420182,3.2078,3547.1,3546.7,3.4548]
[1754275420383,6.6153,3547.1,3547.0,3.4548]
[1754275420775,3.4075,3547.1,3547.0,3.4548]
[1754275421584,2.8382,3547.1,3547.0,3.4548]
[1754275422083,6.046,3547.6,3547.5,0.8957]
[1754275422379,26.0683,3547.6,3547.5,3.4548]
[1754275424283,24.0336,3547.6,3547.4,0.56372]
[1754275424586,0.5141,3546.5,3546.4,4.49839]
[1754275424783,1.7576,3546.5,3546.4,5.90939]
[1754275425087,1.7576,3546.5,3546.4,6.0926]
[1754275425285,2.1119,3546.5,3546.4,6.5696]
[1754275425486,3.4033,3546.5,3546.4,6.5696]
[1754275425687,0.766,3546.5,3546.4,6.5696]
[1754275425892,1.3459,3546.8,3546.7,1.3101]
[1754275426182,1.3459,3546.8,3546.7,0.8331]
[1754275426393,2.0814,3546.2,3546.1,3.17863]
[1754275426594,3.4033,3546.2,3546.1,3.92573]
[1754275427088,1.7576,3546.2,3546.1,3.92573]
[1754275427387,0.5141,3546.2,3546.1,3.92573]
[1754275427592,4.7093,3546.8,3546.7,0.7471]
[1754275427889,0.9916,3546.8,3546.7,3.3618]
[1754275428095,2.283,3546.8,3546.7,3.3618]
[1754275428289,3.4033,3546.8,3546.7,3.3618]
[1754275429288,2.0574,3546.9,3546.7,1.87393]
[1754275429491,1.7271,3546.8,3546.7,1.87393]
[1754275429796,2.4931,3546.8,3546.7,1.87393]
[1754275429989,2.4931,3546.8,3546.7,3.92563]
[1754275430494,3.049,3546.8,3546.7,3.92563]
[1754275430794,3.4033,3546.8,3546.7,3.92563]
[1754275432197,3.2078,3547.4,3546.7,3.92563]
[1754275432405,3.2078,3547.4,3547.3,3.3618]
[1754275433909,2.6373,3547.8,3547.7,1.3101]
[1754275434213,2.6373,3547.8,3547.7,3.3618]
[1754275434601,3.4033,3547.8,3547.7,3.3618]
[1754275435010,3.4033,3547.8,3547.7,3.92549]
[1754275436009,3.4033,3547.8,3547.7,2.6147]
[1754275436202,3.4033,3547.8,3547.7,1.411]
[1754275436606,2.8474,3547.8,3547.7,3.3618]
[1754275437307,1.7576,3547.8,3547.7,3.3618]
[1754275438008,3.049,3547.8,3547.7,3.3618]
[1754275438305,4.1994,3547.9,3547.8,1.87377]
[1754275438610,4.1994,3547.9,3547.8,3.92547]
[1754275438803,1.7576,3547.9,3547.8,3.92547]
[1754275438998,1.9018,3548.2,3548.1,1.87372]
[1754275439199,3.4033,3548.2,3548.1,3.92542]
[1754275441113,3.4033,3548.2,3548.1,3.3618]
[1754275441309,3.4033,3548.2,3548.1,1.888]
[1754275441517,3.4033,3548.2,3548.1,1.411]
[1754275442712,1.3459,3547.7,3547.6,2.45169]
[1754275442917,3.4033,3547.7,3547.6,3.92549]
[1754275443119,3.4033,3547.7,3547.6,3.3618]
[1754275443310,3.4033,3547.7,3547.6,2.6147]
[1754275444014,1.3459,3547.3,3547.2,3.92556]
[1754275444208,3.4033,3547.3,3547.2,3.92556]
[1754275444613,2.8474,3547.3,3547.2,3.92556]
[1754275444812,2.4931,3547.3,3547.2,3.92556]
[1754275445821,3.4033,3547.3,3547.2,3.92556]
[1754275448423,3.4033,3547.5,3547.4,0.56372]
[1754275448817,3.4033,3547.5,3547.3,0.56374]
[1754275449013,2.0574,3547.4,3547.3,2.70144]
[1754275449219,3.4033,3547.4,3547.3,2.70144]
[1754275449418,3.96703,3547.4,3547.3,2.70144]
[1754275450325,3.96703,3547.4,3547.3,0.8331]
[1754275450630,3.96703,3547.4,3547.2,0.56375]
[1754275450826,3.4033,3547.2,3547.1,1.97477]
[1754275451125,3.4033,3547.2,3547.1,2.70147]
[1754275451727,3.4033,3547.2,3547.1,3.17847]
[1754275453322,3.4033,3547.5,3547.4,1.87383]
[1754275453623,3.4033,3547.5,3547.4,3.92553]
[1754275454215,3.4033,3547.5,3547.4,3.3618]
[1754275454420,3.4033,3547.5,3547.4,1.411]
[1754275454620,1.90963,3547.5,3547.2,0.56376]
[1754275454920,3.3506,3547.3,3547.2,2.66896]
[1754275455626,3.3506,3547.3,3547.2,3.13046]
[1754275455819,3.3506,3547.3,3547.2,3.86556]
[1754275462828,3.3506,3547.3,3547.2,0.56376]
[1754275463030,3.3506,3547.3,3547.2,3.86556]
[1754275464532,3.91436,3547.3,3547.1,0.56377]
[1754275464827,3.3506,3547.2,3547.1,1.06067]
[1754275465027,3.3506,3547.2,3547.1,2.66897]
[1754275465237,3.3506,3547.2,3547.1,3.86557]
[1754275465932,2.4126,3547.2,3547.1,3.86557]
[1754275466131,2.6458,3547.5,3547.4,1.86553]
[1754275466333,3.3506,3547.5,3547.4,3.86553]
[1754275467025,3.3506,3547.5,3547.4,3.3018]
[1754275467221,3.3506,3547.5,3547.4,2.1052]
[1754275467434,3.3506,3547.1,3547.0,2.1052]
[1754275467733,3.3506,3547.1,3547.0,0.8403]
[1754275467928,1.9224,3547.0,3546.9,3.2078]
[1754275468135,3.9144,3547.0,3546.9,3.2078]
[1754275468929,4.11660863,3547.0,3546.9,3.2078]
[1754275469929,0.56387,3546.6,3546.3,1.2642]
[1754275470136,1.992,3546.5,3546.4,0.5646]
[1754275470335,3.3506,3546.5,3546.4,2.1052]
[1754275471336,3.3506,3546.5,3546.4,3.3018]
[1754275475434,3.2078,3547.1,3546.9,2.6007]
[1754275475630,3.2078,3547.1,3547.0,6.92500449]
[1754275475838,2.4126,3547.4,3547.3,1.3018]
[1754275476038,2.9822,3547.4,3547.3,3.86555]
[1754275476241,3.3506,3547.4,3547.3,3.3018]
[1754275477039,3.2078,3547.7,3547.6,3.3018]
[1754275477241,5.77906674,3547.7,3547.6,3.3018]
[1754275477541,6.71706674,3547.7,3547.6,3.3018]
[1754275477742,7.28074674,3547.7,3547.6,3.3018]
[1754275478045,7.28074674,3547.7,3547.6,2.5667]
[1754275478338,1.92232,3547.5,3547.3,0.5646]
[1754275478539,1.3586,3547.5,3547.3,0.5646]
[1754275478737,1.3586,3547.5,3547.4,0.8403]
[1754275478932,1.3586,3547.5,3547.4,1.4049]
[1754275479137,1.3586,3547.5,3547.4,2.1052]
[1754275479342,3.3506,3547.5,3547.4,2.1052]
[1754275479542,3.3506,3547.5,3547.4,3.86553]
[1754275480234,2.781,3547.5,3547.4,3.86553]
[1754275481541,2.781,3547.5,3547.4,1.86553]
[1754275481542,0.9902,3547.5,3547.4,1.86553]
[1754275481842,2.4126,3547.5,3547.4,3.86553]
[1754275482137,2.9822,3547.5,3547.4,3.86553]
[1754275485240,3.3506,3547.5,3547.4,3.86553]
[1754275486446,3.76977,3547.8,3547.7,3.2964]
[1754275487045,3.2061,3547.8,3547.7,3.2964]
[1754275489750,0.9286,3547.8,3547.7,3.2964]
[1754275490047,1.6056,3547.8,3547.7,3.2964]
[1754275490253,3.2078,3548.2,3548.1,3.2964]
[1754275490254,5.5321,3548.2,3548.1,3.2964]
[1754275491549,6.0759,3548.2,3548.1,3.2964]
[1754275491942,6.4139,3548.2,3548.1,3.2964]
[1754275494748,6.4139,3548.2,3548.1,1.3484]
[1754275497656,6.4139,3548.2,3548.1,3.2964]
[1754275497955,3.2061,3548.2,3548.1,3.2964]
[1754275498951,3.2061,3548.2,3548.1,2.5585]
[1754275499653,3.2061,3548.2,3548.1,2.0724]
[1754275501249,3.2061,3548.2,3547.8,3.2078]
[1754275501450,1.5087,3547.9,3547.8,4.5562]
[1754275501656,3.2061,3547.9,3547.8,4.5562]
[1754275502049,21.7233,3548.0,3547.9,3.86005]
[1754275502255,1.10742,3548.2,3547.9,3.86005]
[1754275502450,1.95932,3548.2,3548.1,1.3125]
[1754275502756,22.83072,3548.2,3548.1,3.2964]
[1754275502949,0.9286,3548.5,3548.4,0.4861]
[1754275503152,20.3276,3548.5,3548.4,3.2964]
[1754275503550,4.1364,3548.7,3548.6,3.2964]
[1754275503753,25.8129,3548.7,3548.6,3.2964]
[1754275504453,0.9286,3548.4,3548.3,1.3484]
[1754275504657,1.8104,3548.1,3548.0,0.8264]
[1754275504851,7.39292449,3548.1,3547.8,5.1917]
[1754275505060,1.2666,3547.5,3547.4,3.86012]
[1754275505260,3.2061,3547.5,3547.4,3.2964]
[1754275505654,3.2061,3547.5,3547.2,3.77156]
[1754275505860,1.2666,3547.3,3547.2,4.59796]
[1754275506057,1.2666,3547.3,3547.2,6.33006]
[1754275506258,3.2061,3547.3,3547.2,7.06796]
[1754275507451,2.6623,3547.3,3547.2,4.0342]
[1754275507656,3.2061,3547.3,3547.2,3.2078]
[1754275508059,3.2061,3547.3,3547.2,4.5562]
[1754275508257,3.2061,3547.3,3547.2,5.7663]
[1754275508559,3.2061,3547.3,3547.2,6.5042]
[1754275508860,3.2061,3547.3,3547.2,3.2078]
[1754275509049,0.56381,3546.9,3546.6,3.2078]
[1754275509254,3.2061,3546.7,3546.6,4.0342]
[1754275509453,3.2061,3546.7,3546.6,6.5042]
[1754275509957,22.6021,3547.0,3546.9,1.3125]
[1754275510262,22.6021,3547.0,3546.9,3.2964]
[1754275512161,22.6021,3547.0,3546.9,2.5585]
[1754275512560,22.6021,3547.0,3546.9,1.3484]
[1754275512950,22.6021,3547.0,3546.9,3.2964]
[1754275513155,3.2061,3547.3,3547.2,3.2964]
[1754275513358,22.6011,3547.3,3547.2,3.2964]
[1754275513558,23.16485,3547.3,3547.2,3.2964]
[1754275513960,1.3038,3547.0,3546.9,2.5404]
[1754275514258,3.2481,3547.0,3546.9,3.243]
[1754275514653,3.2481,3547.0,3546.9,2.5462]
[1754275515260,3.2481,3547.0,3546.9,3.243]
[1754275516554,3.8119,3547.0,3546.9,2.5462]
[1754275516953,3.8119,3547.0,3546.9,1.3779]
[1754275517152,3.2481,3547.0,3546.9,0.8297]
[1754275517853,2.7176,3547.0,3546.9,3.243]
[1754275518058,1.6651,3547.0,3546.9,3.243]
[1754275518454,0.9496,3547.0,3546.9,3.243]
[1754275519066,20.3446,3547.3,3547.2,1.2954]
[1754275519269,0.9496,3547.3,3547.2,3.243]
[1754275519562,0.56376,3547.3,3546.7,0.5482]
[1754275519762,2.3634,3546.8,3546.7,3.10424]
[1754275519958,0.6983,3547.1,3546.7,2.5404]
[1754275520156,2.3634,3547.1,3547.0,2.556]
[1754275520460,3.77147,3547.8,3547.5,0.56371]
[1754275520657,1.6651,3547.6,3547.5,3.80671]
[1754275521064,2.3634,3547.6,3547.5,3.243]
[1754275521264,2.3634,3547.6,3547.5,1.3779]
[1754275521265,3.8118,3547.6,3547.5,1.3779]
[1754275521573,3.2481,3547.6,3547.5,3.243]
[1754275522168,1.3038,3547.4,3547.3,1.94165]
[1754275522359,3.2481,3547.4,3547.3,2.64425]
[1754275522667,3.2481,3547.4,3547.3,3.80675]
[1754275523370,21.7534,3547.6,3547.5,3.80672]
[1754275524565,21.7534,3547.6,3547.5,3.243]
[1754275524869,22.6381,3547.6,3547.5,3.243]
[1754275525058,22.6381,3547.6,3547.5,2.5462]
[1754275525270,3.2481,3547.6,3547.5,2.5462]
[1754275525564,22.6361,3547.6,3547.5,3.243]
[1754275526073,22.6361,3547.6,3547.5,2.5462]
[1754275526664,22.6361,3547.6,3547.5,1.3779]
[1754275526865,22.6361,3547.6,3547.2,3.80675]
[1754275526866,3.2481,3547.3,3547.2,3.80675]
[1754275528672,3.81191,3546.9,3546.8,0.8297]
[1754275529369,3.2481,3546.9,3546.8,1.8436]
[1754275529576,3.2481,3546.9,3546.8,3.243]
[1754275529868,3.2481,3546.9,3546.8,2.0805]
[1754275530072,3.2481,3546.9,3546.8,1.3779]
[1754275530372,3.2481,3546.9,3546.8,0.8297]
[1754275532168,0.7155,3546.8,3546.5,0.7026]
[1754275532363,3.2481,3546.8,3546.7,3.243]
[1754275533675,2.3634,3546.8,3546.7,3.243]
[1754275533869,1.6651,3546.8,3546.7,3.243]
[1754275535667,3.2481,3546.8,3546.7,3.243]
[1754275536068,3.2481,3546.8,3546.7,2.5462]
[1754275536267,3.2481,3546.8,3546.7,0.8297]
[1754275538778,1.3038,3546.6,3546.5,3.77167]
[1754275538977,1.3038,3546.6,3546.5,4.60137]
[1754275538978,3.2481,3546.6,3546.5,4.60137]
[1754275539172,3.2481,3546.6,3546.5,5.85217]
[1754275539985,3.2481,3546.6,3546.5,5.14957]
[1754275540281,3.2481,3546.6,3546.5,4.60137]
[1754275540979,3.2481,3546.6,3546.5,5.14957]
[1754275541286,3.2481,3546.6,3546.5,7.01467]